Cogmind - Beta 12 @@@ ROGUE MODE // 2023.04.14 @ 18:37:54 Player: kaj Result: Destroyed by as-44299 with Assembled Heavy Rifle Performance ------------- Evolutions (0) 0 Regions Visited (2) 400 Robots Destroyed (14) 70 Value Destroyed (253) 253 Prototype IDs (0) 0 Alien Tech Used (0) 0 Bonus (0) 0 TOTAL SCORE: 723 Bonus ------- None Cogmind --------- Core Integrity 0/250 Matter 113/300 Energy 265/265 System Corruption 10% Temperature Cool (0) Movement Treading (480) Ox4 Location -10/Mines Parts ------- > --- POWER (1) -------- Reinforced Ion Engine > --- PROPULSION (2) --- Light Treads Aluminum Leg > --- UTILITY (2) ------ Huge Storage Unit Sensor Array > --- WEAPON (2) ------- Small Laser Rocket Launcher > --- INVENTORY (25) --- Reinforced Ion Engine Reinforced Ion Engine Aluminum Leg Heat Sink Heat Sink Huge Storage Unit Weapon Shielding Rocket Launcher Peak State ------------ > --- POWER ------------ Reinforced Ion Engine > --- PROPULSION ------- Light Treads Wheel > --- UTILITY ---------- Small Storage Unit Large Storage Unit > --- WEAPON ----------- Assault Rifle Rocket Launcher > --- INVENTORY -------- Reinforced Ion Engine Reinforced Ion Engine Reinforced Ion Engine Light Treads Compact Wheel Small Laser Assault Rifle Rocket Launcher [Rating: 10] Favorites ----------- Power Reinforced Ion Engine Engine Reinforced Ion Engine Propulsion Light Treads Treads Light Treads Leg Aluminum Leg Wheel Wheel Utility Huge Storage Unit Device Sensor Array Storage Huge Storage Unit Weapon Assault Rifle Energy Gun Small Laser Ballistic Gun Assault Rifle Launcher Rocket Launcher Build | -11 -10 -10 ------- Run | Jun Mat Min Slots Evolved . | . . . Power . | . . . Propulsion . | . . . Utility . | . . . Weapon . | . . . Parts Attached 25 | 2 14 9 Power 2 | . 1 1 Engine 2 | . 1 1 Core . | . . . Reactor . | . . . Propulsion 6 | 2 . 4 Treads 2 | 1 . 1 Leg 1 | . . 1 Wheel 3 | 1 . 2 Hover . | . . . Flight . | . . . Utility 3 | . 3 . Device 1 | . 1 . Storage 2 | . 2 . Processor . | . . . Hackware . | . . . Protection . | . . . Artifact . | . . . Weapon 14 | . 10 4 Energy Gun 2 | . . 2 Energy Cannon . | . . . Ballistic Gun 5 | . 5 . Ballistic Cannon . | . . . Launcher 7 | . 5 2 Special Weapon . | . . . Impact Weapon . | . . . Slashing Weapon . | . . . Piercing Weapon . | . . . Special Melee Weapon . | . . . Unidentified Prototypes . | . . . Parts Lost 7 | . . 7 Power 1 | . . 1 Propulsion 4 | . . 4 Utility . | . . . Weapon 2 | . . 2 Highest Loss Streak 4 | . . 4 To Critical Strikes . | . . . Average Slot Usage (%) 96 | . 95 98 Engine 13 | . 13 13 Treads 13 | . 14 13 Wheel 13 | . 14 12 Device 9 | . 7 14 Storage 15 | . 16 14 Energy Gun 1 | . . 3 Ballistic Gun 25 | . 27 22 Naked Turns . | . . . Heaviest Build 114 | 12 114 97 Greatest Support 20 | 20 20 20 Greatest Overweight (x) 11 | . 11 9 Average Overweight (x) 5 | . 4 8 Largest Inventory Capacity 25 | 8 25 25 Average Capacity 20 | 8 18 25 Most Carried 14 | 6 14 14 Average Carried 10 | 5 9 13 Final Capacity 25 | 8 25 25 Final Carried 14 | 4 14 8 Class Distribution -------------------- 100% | Mutant Dominant Class ---------------- Mutant | -10/Materials Mutant | -10/Mines Resources | -11 -10 -10 ----------- Run | Jun Mat Min Matter Collected 595 | 200 220 175 Remotely . | . . . Salvage Created 336 | . 258 78 Parts 31 | . 30 1 Haulers Intercepted . | . . . Recyclers Shooed . | . . . Parts Field Recycled . | . . . Retrieved Matter . | . . . Parts Self-Destructed . | . . . Prevented . | . . . Kills | -11 -10 -10 ------- Run | Jun Mat Min Combat Hostiles Destroyed 19 | . 10 9 Guns 9 | . 4 5 AOE 10 | . 6 4 Classes Destroyed 6 | . 4 2 Worker 1 | . . 1 Builder 2 | . 1 1 Watcher 1 | . 1 . Swarmer 6 | . 6 . Grunt 4 | . 4 . Assembled 9 | . . 9 Best Kill Streak 5 | . 3 5 Combat Bots Only 4 | . 3 4 Max Kills in Single Turn 3 | . 3 1 Gunslinging . | . . . Exploded 3 | . 3 1 Melee . | . . . Uniques/NPCs Destroyed . | . . . Combat | -11 -10 -10 -------- Run | Jun Mat Min Damage Taken 1200 | . 347 853 Core 263 | . 53 210 Absorbed by Shields . | . . . Core Remaining (%) 100 | 100 . . Volleys Fired 51 | . 25 26 Largest 2 | . 2 2 Hottest 60 | . 40 60 Shots Fired 85 | . 43 42 Gun 68 | . 36 32 Cannon . | . . . Launcher 17 | . 7 10 Special . | . . . Kinetic 60 | . 36 24 Thermal 8 | . . 8 Explosive 17 | . 7 10 Electromagnetic . | . . . Robot Hit Streak 14 | . 13 14 Robot Miss Streak 6 | . 2 6 Penetration Max . | . . . Secondary Targets . | . . . Shots Hit Robots 49 | . 29 20 Core Hits 35 | . 16 19 Critical Kills . | . . . Critical Parts Destroyed . | . . . Critical Strikes . | . . . Melee Attacks . | . . . Impact . | . . . Slashing . | . . . Piercing . | . . . Sneak Attacks . | . . . Combat Hostiles . | . . . Follow-up Attacks . | . . . Damage Inflicted 1277 | . 682 595 Guns 539 | . 331 208 Cannons . | . . . Explosions 738 | . 351 387 Melee . | . . . Ramming . | . . . Kinetic 484 | . 331 153 Thermal 55 | . . 55 Explosive 738 | . 351 387 Electromagnetic . | . . . Impact . | . . . Slashing . | . . . Piercing . | . . . Highest Corruption 10 | . . 10 Average Corruption 9 | . . 9 Corruption Purged . | . . . Corruption Blocked . | . . . Effects 1 | . . 1 Data Loss (minor) 1 | . . 1 Overload Shots . | . . . Overflow Damage 2 | . 2 . Projectiles . | . . . Explosions 2 | . 2 . Melee . | . . . Knockbacks . | . . . Impact . | . . . Kinetic . | . . . Secondary . | . . . Self-Inflicted Damage 218 | . 40 178 Shots 6 | . 1 5 Rammed . | . . . Targets Rammed . | . . . Kicked . | . . . Crushed . | . . . Highest Temperature 136 | . 3 136 Average Temperature 30 | . 3 38 Received Heat Transfer 378 | . 138 240 Siege Activations . | . . . Robots Corrupted . | . . . Combat Hostiles . | . . . Parts Fried . | . . . Impact Corruptions . | . . . Robots Melted . | . . . Combat Hostiles . | . . . Parts Melted . | . . . Heat Transferred 125 | . . 125 Parts Sabotaged . | . . . Parts Stolen . | . . . Parts Stripped . | . . . Power Chain Reactions . | . . . Missiles Intercepted . | . . . Alert | -11 -10 -10 ------- Run | Jun Mat Min Peak Influence 287 | . 287 61 Initial 45 | . . 45 Average 92 | . 120 43 Maximum Alert Level 1 | . 1 . Low Security (%) 87 | 100 80 100 Level 1 12 | . 19 . Level 2 . | . . . Level 3 . | . . . Level 4 . | . . . Level 5 . | . . . High Security . | . . . Max Security . | . . . Squads Dispatched 2 | . 2 . Investigation 1 | . 1 . Extermination . | . . . Reinforcement 1 | . 1 . Assault . | . . . Garrison . | . . . Intercept . | . . . Searches Triggered . | . . . Construction Impeded . | . . . Haulers Reinforced . | . . . Active Scanning Responses . | . . . Cargo Convoy Interrupts . | . . . Stealth | -11 -10 -10 --------- Run | Jun Mat Min Distress Signals . | . . . Communications Jammed . | . . . Distress Signals . | . . . Times Spotted 23 | . 12 11 Peak Tracking Total 3 | . 3 3 Tactical Retreats 1 | . . 1 Traps | -11 -10 -10 ------- Run | Jun Mat Min Traps Triggered . | . . . Indirectly . | . . . Trap Hack Attempts . | . . . Triggered . | . . . Disarmed . | . . . Reprogrammed . | . . . Reused . | . . . Traps Extracted . | . . . Installed . | . . . Triggered . | . . . Machines | -11 -10 -10 ---------- Run | Jun Mat Min Machines Disabled 3 | . 3 . Max in Single Turn 3 | . 3 . Machines Repaired . | . . . Machines Sabotaged . | . . . Overloaded Fab Kills . | . . . Hacking | -11 -10 -10 --------- Run | Jun Mat Min Machines Accessed 3 | . 3 . Terminals 3 | . 3 . Fabricators . | . . . Repair Stations . | . . . Recycling Units . | . . . Scanalyzers . | . . . Garrison Access . | . . . Total Hacks 7 | . 7 . Successful 2 | . 2 . Failed 5 | . 5 . Catastrophic 1 | . 1 . Database Lockouts . | . . . Manual 2 | . 2 . Terminals 7 | . 7 . Fabricators . | . . . Repair Stations . | . . . Recycling Units . | . . . Scanalyzers . | . . . Garrison Access . | . . . Terminal Hacks 2 | . 2 . Branch Access Points 1 | . 1 . Unreport Threat 1 | . 1 . Fabricator Hacks . | . . . Repair Station Hacks . | . . . Recycling Unit Hacks . | . . . Scanalyzer . | . . . Garrison Access Hacks . | . . . Unauthorized Hacks . | . . . Terminals . | . . . Fabricators . | . . . Repair Stations . | . . . Recycling Units . | . . . Scanalyzers . | . . . Garrison Access . | . . . Data Cores Recovered . | . . . Used . | . . . Hacking Detections 3 | . 3 . Full Trace Events 1 | . 1 . Feedback Events . | . . . Feedback Blocked . | . . . Robot Schematics Acquired . | . . . Robots Built . | . . . Authchips . | . . . Time . | . . . Total Robot Build Rating . | . . . Part Schematics Acquired . | . . . Parts Built . | . . . Authchips . | . . . Time . | . . . Total Part Build Rating . | . . . Parts Repaired . | . . . Time . | . . . Parts Recycled . | . . . Recycled Matter . | . . . Retrieved Matter . | . . . Retrieved Components . | . . . Parts Scanalyzed . | . . . Part Schematics Acquired . | . . . Parts Damaged . | . . . Bothacking | -11 -10 -10 ------------ Run | Jun Mat Min Used RIF Installer . | . . . Robots Hacked . | . . . Non-combat . | . . . Combat . | . . . Robot Hacks Applied . | . . . Relay Couplers Released . | . . . Fabnet Peak Effective % . | . . . Robots Rewired . | . . . Allies Hacked . | . . . Hacks Repelled . | . . . Allies | -11 -10 -10 -------- Run | Jun Mat Min Total Allies . | . . . Largest Group . | . . . Highest-Rated Group . | . . . Highest-Rated Ally . | . . . Total Orders . | . . . Ally Attacks . | . . . Total Damage . | . . . Kills . | . . . Allies Corrupted . | . . . Allies Melted . | . . . Intel | -11 -10 -10 ------- Run | Jun Mat Min Robot Analysis Total . | . . . Derelict Logs Recovered 1 | . . 1 Drone Launches . | . . . Drone Recoveries . | . . . Exploration | -11 -10 -10 ------------- Run | Jun Mat Min Turns Passed 1084 | 7 685 392 Spaces Moved 436 | 3 284 149 Core . | . . . Treads 147 | 1 145 1 Legs 2 | 2 . . Wheels 287 | . 139 148 Hover . | . . . Flight . | . . . Fastest Speed 120 | 120 160 175 Average Speed 198 | 133 193 208 Slowest Speed 480 | 160 245 480 Overloaded Moves . | . . . Propulsion Burnouts . | . . . Robots Hopped . | . . . Cave-ins Triggered . | . . . Exploration Rate (%) 33 | 2 56 41 Regions Visited 2 Branch Regions 1 Pre-discovered Areas . | . . . Known Exits Taken 1 | . 1 . Unknown Exits Taken 1 | 1 . . Scrap Searched . | . . . Spaces Dug 12 | . 12 . Terrain Destroyed 175 | . 85 90 Melee . | . . . Projectile . | . . . AOE 175 | . 85 90 Terrain Rammed . | . . . Walls Destroyed . | . . . Machines Disabled . | . . . Actions | -11 -10 -10 --------- Run | Jun Mat Min Total 567 | 6 373 188 Wait 37 | . 34 3 Move 434 | 2 283 149 Hop . | . . . Pick Up 13 | . 12 1 Fast Attach 2 | . 2 . Attach 9 | . 2 7 Detach 1 | . 1 . Swap 14 | 2 10 2 Drop 6 | 2 4 . Fire 51 | . 25 26 Melee . | . . . Ram . | . . . Kick . | . . . Crush . | . . . Escape Stasis . | . . . Rewire . | . . . Trap . | . . . Miscellaneous . | . . . Route ------- -11/Junkyard -10/Materials (discovered 2 exits: [*Mat] / *Min) -10/Mines History --------- Turn | Location | Event 1 | -11/Junkyard | Discovered new exit (range 2) 8 | -11/Junkyard | Entered Materials 310 | -10/Materials | Build established: Mutant 328 | -10/Materials | Identified exit to Mines 350 | -10/Materials | Discovered new exit (range 15) 693 | -10/Materials | Entered Mines 702 | -10/Mines | Met a Derelict bent on vengeance 739 | -10/Mines | Learned Materials stockpile data 755 | -10/Mines | Assembled infested the area 760 | -10/Mines | Assisted by a Guerilla fighting off Assembled 1019 | -10/Mines | Lost 3 parts (1p1n1w) 1042 | -10/Mines | Core integrity fell below 50% 1067 | -10/Mines | System corruption reached 10% 1069 | -10/Mines | Core integrity fell below 20% 1085 | -10/Mines | Destroyed by as-44299 with Assembled Heavy Rifle Last Messages --------------- 01002_ Acquired 7 matter. 01009_ The unstable cave ceiling collapses. 01016_ R-06 Scavenger collects Wheel. 01019_ R-06 Scavenger collects Seismic Detector. 01026_ Acquired Wheel. 01029_ Acquired 25 matter. 01032_ Acquired 22 matter. 01037_ Lgt. Treads destroyed. 01050_ Assault Rifle destroyed. 01062_ Com. Wheel destroyed. 01062_ System corrupted by crushing effect (+5). 01062_ Knocked back. 01063_ System corrupted: Component data lost. 01066_ Wheel destroyed. 01066_ System corrupted by crushing effect (+5). 01068_ as-70025 destroyed. 01070_ as-33058 destroyed. 01074_ as-72774 destroyed. 01080_ The unstable cave ceiling collapses. 01084_ K-01 Serf destroyed. Map ----- +----------------------------------------------------+ | #####???# !""" ????????????????????????? | | ????????# %%""" ?????????????????????????? | | ????????# """ #??????????????????????????? | | ?# ???### ! """ #??????????????????????????? | | ?# #### #??????????????????????????? | | ?# #??????????????????????????? | | # ##??????????????????????????? | | ## ###?##????????????????????????? | | % ??# = #?# ##???????????????????????? | | ##???## # * ###? #???????????????????????? | | ???????##### ###?## #???????????????????????? | | ??????##????## #??## #????????????????????????? | | ?????## ????# #?## #?????????????????????????? | | ?????# ??# %* ##????????????????????????? | | ?????# ## ##???????????????????????? | | ??????# *! #???????????????????????? | | ??????## * ####### ??????????????? | | ???????## | ??????????????? | | ????????# ##### a ???????????????? | | ?????? = ????# #### ###????????????????? | | ???? *% ?????# # #??????????????????????? | | ??? ????? ##?????????????????????? | | ??? ##????? # #?????????????????????? | | ??? ??????? ###### #?????????????????????? | | ??????????? =%?????# ##=%!##???????????????? | | ?????????? ??????# @ =%#???????????????? | | ???????? !???????# = = ????????? | | ??????? ????????## # *% ????????? | | ??????? ??????????###g ? ####### ?????????? | | ??????? ?????????????#g ? #?????????????????? | | ??????????????????????#g ???????????????????? | | ??????????????????????#### #???????????????????? | | ??????????????????????????# ##???????????????????? | | ??????????????????????????? ????????????????????? | | ???????????????????????????##????????????????????? | | ?????????????????????????????????????????????????? | | ?????????????????????????????????????????????????? | | ?????????????????????????????????????????????????? | | ?????????????????????????????????????????????????? | | ?????????????????????????????????????????????????? | | ?????????????????????????????????????????????????? | | ?????????????????????????????????????????????????? | | ?????????????????????????????????????????????????? | | | | | | | | | | | | | | | +----------------------------------------------------+ Best States ------------- Heat Dissipation 25 Energy Generation 12 Energy Capacity 265 Matter Stores 280 Matter Capacity 300 Sight Range 16 Robot Scan Range 14 Terrain Scan Density 10 Evasion (%) 40 Recoil Reduction 1 Item Schematics ----------------- None Robot Schematics ------------------ None Fabricated ------------ Nothing Alien Tech Used ----------------- None Achievements -------------- None Challenges ------------ None Game ------ Seed DirtyCombatMagmablaster Manual? 0 Play Time 00:12:18 Cumulative 131.5 hours Start 2023.04.14 @ 18:29:04 End 2023.04.14 @ 18:37:54 Sessions 1 Manual Loads 0 Difficulty Rogue Special Mode None Game No. 199 Rogue 199 Adventurer 0 Explorer 0 Win Type - Total 0 Types 0/0/0/0/0/0/0/0/0 Lore% 48 Gallery% 56 Achievement% 43 Wizard Run 0 Options --------- ASCII 0 Keyboard 0 Movement Mouse Keybinds 1 Fullscreen 2 Font 18/SmallcapsGlow Map View 76x50 Tactical HUD 1 Map Filters SATURATION(75) Filters LOW_CONTRAST(23,23,23) Steam 1 RUN: 7c81122d-bdf5-4746-821a-651404a7bb8f